bitfinex-derivatives/quotes_SOLF0:USTF0_20250523
["timestamp","ask_amount","ask_price","bid_price","bid_amount"]
[1747998504335,5.3928,185.44,185.39,4.43890353]
[1747998504537,0.03721609,185.45,185.39,4.43890353]
[1747998504737,0.03721609,185.45,185.41,5.3934]
[1747998504939,5.3928,185.44,185.41,5.3934]
[1747998505134,0.03721609,185.45,185.41,5.3934]
[1747998505440,0.03721609,185.45,185.4,5.3937]
[1747998505643,5.3932,185.42,185.38,4.43890353]
[1747998506138,5.394,185.39,185.38,4.43890353]
[1747998508539,5.3946,185.37,185.36,2.32994017]
[1747998508838,0.03814942,185.4,185.32,5.396]
[1747998509038,5.3951,185.36,185.32,5.396]
[1747998509346,0.03455919,185.38,185.32,5.396]
[1747998509745,0.03455919,185.38,185.31,110.04]
[1747998510146,5.42905919,185.38,185.34,5.3953]
[1747998510442,0.03455919,185.38,185.31,110.04]
[1747998510851,5.3947,185.37,185.31,110.04]
[1747998511150,0.03455919,185.38,185.31,110.04]
[1747998511344,0.03455919,185.38,185.31,115.4362]
[1747998511645,109.67455919,185.38,185.27,109.64]
[1747998511833,5.3957,185.34,185.3,5.3965]
[1747998512037,5.43451217,185.34,185.27,109.64]
[1747998512445,0.03881217,185.34,185.27,111.5138]
[1747998513036,0.03881217,185.34,185.29,5.3969]
[1747998513450,0.03881217,185.34,185.27,111.5138]
[1747998514149,0.03881217,185.34,185.3,5.3966]
[1747998514351,0.03881217,185.34,185.27,111.5138]
[1747998514850,5.396,185.33,185.3,5.3966]
[1747998515543,5.43441217,185.34,185.31,5.3963]
[1747998515850,0.03881217,185.34,185.27,111.5138]
[1747998516049,5.396,185.33,185.29,5.3967]
[1747998516440,0.03881217,185.34,185.27,109.64]
[1747998517050,5.3964,185.31,185.28,5.397]
[1747998517253,0.03881217,185.34,185.27,109.64]
[1747998517650,0.03881217,185.34,185.29,5.3969]
[1747998517845,0.03881217,185.34,185.27,109.64]
[1747998518151,0.03881217,185.34,185.32,5.3959]
[1747998518340,0.03881217,185.34,185.27,109.64]
[1747998518341,0.03881217,185.34,185.28,1.8003]
[1747998518546,0.03881217,185.34,185.29,102.5]
[1747998519951,0.03881217,185.34,185.32,5.396]
[1747998522453,0.03881217,185.34,185.29,102.5]
[1747998522454,0.03881217,185.34,185.33,5.3958]
[1747998523153,5.3947,185.37,185.34,5.3955]
[1747998524155,5.43563998,185.37,185.34,5.43143275]
[1747998524555,0.04093998,185.37,185.34,0.03593275]
[1747998525152,5.43563998,185.37,185.34,5.43123275]
[1747998526454,0.04093998,185.37,185.34,0.03593275]
[1747998526849,5.3952,185.35,185.34,0.03593275]
[1747998529468,5.3972,185.29,185.24,1.8081]
[1747998529765,114.95938805,185.36,185.26,5.3977]
[1747998530165,114.95938805,185.36,185.25,5.398]
[1747998530565,0.04022179,185.32,185.24,1.8081]
[1747998530866,5.397,185.29,185.26,5.3976]
[1747998531266,0.04022179,185.32,185.24,1.8081]
[1747998532366,0.04022179,185.32,185.24,104.3281]
[1747998532567,5.3968,185.3,185.27,5.3972]
[1747998533069,5.397,185.29,185.26,5.3977]
[1747998533969,0.04022179,185.32,185.25,5.398]
[1747998534170,0.04022179,185.32,185.24,1.8081]
[1747998534371,5.3968,185.3,185.24,1.8081]
[1747998534571,0.04022179,185.32,185.24,1.8081]
[1747998534971,5.3969,185.3,185.26,5.3977]
[1747998535170,0.04022179,185.32,185.24,1.8081]
[1747998535471,109.7,185.31,185.24,1.8081]
[1747998535672,5.3978,185.27,185.24,7.2063]
[1747998535873,5.43841451,185.27,185.24,7.2063]
[1747998537576,5.43841451,185.27,185.23,5.3986]
[1747998537872,5.43841451,185.27,185.22,109.7]
[1747998538076,5.43841451,185.27,185.24,5.3982]
[1747998538769,5.43841451,185.27,185.25,5.3981]
[1747998539174,5.3979,185.26,185.21,1.8685]
[1747998539374,0.04061451,185.27,185.24,5.3984]
[1747998539674,5.43831451,185.27,185.24,5.3984]
[1747998539976,0.04061451,185.27,185.21,1.8685]
[1747998540779,174.0,185.32,185.21,7.14788805]
[1747998540978,5.3963,185.32,185.21,7.14788805]
[1747998541678,5.3963,185.32,185.29,5.3968]
[1747998541875,5.3968,185.3,185.25,0.03696314]
[1747998542176,0.03990226,185.32,185.25,0.03696314]
[1747998542978,5.3964,185.31,185.28,5.3971]
[1747998544180,5.3964,185.31,185.29,5.3969]
[1747998544379,0.03990226,185.32,185.25,0.03696314]
[1747998545477,0.03990226,185.32,185.26,109.7]
[1747998545780,0.03990226,185.32,185.31,5.3964]
[1747998547197,109.7,185.37,185.3,0.03857092]
[1747998547494,5.3949,185.36,185.3,0.03857092]
[1747998548185,0.03563241,185.35,185.3,0.03857092]
[1747998548386,0.03563241,185.35,185.33,5.3957]
[1747998549587,0.03563241,185.35,185.32,5.396]
[1747998549892,5.43083241,185.35,185.32,5.396]
[1747998550095,0.03563241,185.35,185.3,102.57857092]
[1747998550494,5.43103241,185.35,185.3,102.57857092]
[1747998550796,5.43103241,185.35,185.32,5.3959]
[1747998551897,5.3955,185.34,185.31,5.3963]
[1747998552393,5.3964,185.31,185.3,0.03857092]
[1747998556500,5.398,185.26,185.21,109.7]
[1747998556704,109.7,185.32,185.21,111.5675]
[1747998556902,109.7,185.32,185.25,5.3979]
[1747998557200,109.7,185.32,185.21,111.5675]
[1747998557201,5.3972,185.29,185.21,111.5675]
[1747998557503,0.03539123,185.27,185.23,0.04006536]
[1747998558103,0.03539123,185.27,185.25,5.3979]
[1747998559200,0.03539123,185.27,185.24,5.3984]
[1747998559606,0.03539123,185.27,185.23,0.04006536]
[1747998559802,0.03539123,185.27,185.26,5.3978]
[1747998560300,0.03539123,185.27,185.25,5.398]
[1747998561203,0.03539123,185.27,185.24,5.3983]
[1747998561497,0.03539123,185.27,185.23,0.04006536]
[1747998561710,102.6229,185.37,185.31,5.3963]
[1747998561711,5.3955,185.34,185.31,5.3963]
[1747998562003,5.3955,185.34,185.28,109.7]
[1747998562199,5.3955,185.34,185.29,111.6245]
[1747998562402,5.3955,185.34,185.3,5.3964]
[1747998562600,5.43415911,185.34,185.3,0.03555392]
[1747998563102,0.03865911,185.34,185.3,0.03555392]
[1747998564807,0.03865911,185.34,185.33,5.3958]
[1747998566102,109.7,185.42,185.31,5.27938805]
[1747998566404,4.93697789,185.43,185.31,5.27938805]
[1747998566708,5.3937,185.41,185.37,5.3944]
[1747998567004,0.03807934,185.41,185.39,5.3938]
[1747998567304,0.03807934,185.41,185.37,0.03805398]
[1747998568000,5.3943,185.38,185.37,0.03805398]
[1747998569001,5.3938,185.4,185.37,0.03805398]
[1747998569198,0.03807934,185.41,185.37,0.03805398]
[1747998569605,5.394,185.4,185.37,0.03805398]
[1747998570198,5.3941,185.39,185.37,0.03805398]
[1747998570400,0.03807934,185.41,185.31,5.90824258]
[1747998570601,5.27938805,185.38,185.31,5.90824258]
[1747998570895,5.3961,185.32,185.31,5.90824258]
[1747998571596,5.3964,185.31,185.3,0.0370389]
[1747998586609,0.03882296,185.33,185.11,11.74409692]
[1747998586811,5.27938805,185.32,185.22,111.04]
[1747998587619,0.03761039,185.29,185.25,0.03484549]
[1747998588621,5.3979,185.26,185.25,0.03484549]
[1747998589816,0.03761039,185.29,185.25,0.03484549]
[1747998590314,5.43471039,185.29,185.26,5.3976]
[1747998591419,5.43471039,185.29,185.25,5.43284549]
[1747998591619,5.3973,185.28,185.25,5.43284549]
[1747998591921,0.03761039,185.29,185.25,0.03484549]
[1747998592116,5.3978,185.26,185.25,0.03484549]
[1747998596413,0.03761039,185.29,185.25,0.03484549]
[1747998597017,5.3973,185.28,185.25,0.03484549]
[1747998597218,0.03761039,185.29,185.25,0.03484549]
[1747998597625,5.3977,185.27,185.25,0.03484549]
[1747998599823,5.3978,185.26,185.25,0.03484549]
[1747998600023,0.03761039,185.29,185.25,0.03484549]
[1747998600326,5.3973,185.28,185.25,5.43294549]
[1747998600520,0.03761039,185.29,185.25,0.03484549]
[1747998600922,0.03761039,185.29,185.25,111.11484549]
[1747998601126,0.03761039,185.29,185.25,213.67484549]
[1747998601322,0.03761039,185.29,185.26,3.8892]
[1747998602126,0.03761039,185.29,185.27,5.3975]
[1747998602519,0.03761039,185.29,185.26,3.8892]
[1747998602725,5.3961,185.32,185.26,3.8892]
[1747998603323,5.3964,185.31,185.28,5.397]
[1747998603711,5.3964,185.31,185.28,5.43702129]
[1747998603917,5.437823,185.31,185.28,5.43702129]
[1747998604727,0.041423,185.31,185.29,5.3969]
[1747998605923,0.041423,185.31,185.3,5.3967]
[1747998609136,5.3967,185.3,185.28,0.04002129]
[1747998609835,5.3969,185.29,185.28,0.04002129]
[1747998610132,0.041423,185.31,185.28,0.04002129]
[1747998610932,5.3967,185.3,185.28,0.04002129]
[1747998611734,5.3969,185.29,185.28,0.04002129]
[1747998611928,0.041423,185.31,185.28,0.04002129]
[1747998612430,5.3969,185.29,185.28,0.04002129]
[1747998613030,0.041423,185.31,185.28,0.04002129]
[1747998613433,5.3969,185.29,185.28,0.04002129]
[1747998613631,0.041423,185.31,185.28,0.04002129]
[1747998615133,5.3969,185.3,185.28,0.04002129]
[1747998615533,0.041423,185.31,185.28,0.04002129]
[1747998615833,5.3969,185.29,185.28,0.04002129]
[1747998616931,109.9,185.3,185.22,4.44718851]
[1747998617936,5.3976,185.27,185.24,5.43928255]
[1747998618324,5.3976,185.27,185.24,0.04108255]
[1747998618528,5.3976,185.27,185.24,5.43938255]
[1747998619239,5.3973,185.28,185.25,5.3981]
[1747998619534,109.9,185.3,185.25,5.3981]
[1747998619837,5.3974,185.28,185.25,5.3981]
[1747998620234,109.9,185.3,185.26,5.3978]
[1747998620530,5.3973,185.28,185.24,0.04108255]
[1747998620729,109.9,185.3,185.26,5.3978]
[1747998621739,5.3972,185.28,185.26,5.3978]
[1747998621937,5.3972,185.28,185.25,5.3981]
[1747998622126,5.397,185.29,185.24,0.04108255]
[1747998622330,0.041423,185.31,185.25,102.56]
[1747998622824,5.3968,185.3,185.25,102.56]
[1747998623124,5.3968,185.3,185.27,5.3974]
[1747998624340,5.437923,185.31,185.25,102.56]
[1747998624531,0.041423,185.31,185.25,102.56]
[1747998625037,5.3967,185.3,185.25,102.56]
[1747998625237,0.041423,185.31,185.25,102.56]
[1747998626139,5.437823,185.31,185.29,5.3969]
[1747998626641,5.437823,185.31,185.28,5.43493206]
[1747998627044,5.3968,185.3,185.28,0.03783206]
[1747998627933,5.3969,185.29,185.28,0.03783206]
[1747998632841,4.97840089,185.31,185.28,0.03783206]
[1747998633139,1.98600089,185.31,185.3,5.3967]
[1747998633342,6.58263719,185.33,185.28,110.33783206]
[1747998633739,6.58263719,185.33,185.31,5.3961]
[1747998634740,6.58263719,185.33,185.32,5.3961]
[1747998634939,0.0356953,185.34,185.32,5.3961]
[1747998635142,0.0356953,185.34,185.28,110.33783206]
[1747998635143,5.4311953,185.34,185.28,110.33783206]
[1747998635642,5.4311953,185.34,185.31,5.3962]
[1747998636242,5.4311953,185.34,185.3,5.3966]
[1747998636643,5.4311953,185.34,185.28,110.33783206]
[1747998636942,0.0356953,185.34,185.28,110.33783206]
[1747998637145,0.0356953,185.34,185.31,5.3964]
[1747998637639,5.4313953,185.34,185.31,5.3964]
[1747998638846,0.0356953,185.34,185.28,110.33783206]
[1747998639347,5.4313953,185.34,185.28,110.33783206]
[1747998639845,0.0356953,185.34,185.32,5.3961]
[1747998640241,0.0356953,185.34,185.28,110.33783206]
[1747998640850,5.4311953,185.34,185.28,110.33783206]
[1747998641554,5.4311953,185.34,185.31,5.3962]
[1747998641951,0.0356953,185.34,185.28,110.33783206]
[1747998642151,0.0356953,185.34,185.31,5.3962]
[1747998643052,0.0356953,185.34,185.28,110.33783206]
[1747998643654,5.4313953,185.34,185.31,5.3963]
[1747998644151,5.4313953,185.34,185.28,110.33783206]
[1747998644757,0.0356953,185.34,185.28,110.33783206]
[1747998645958,0.0356953,185.34,185.29,5.27938805]
[1747998646256,0.0356953,185.34,185.33,5.3958]
[1747998646758,5.394,185.4,185.33,110.28]
[1747998646959,110.28,185.42,185.33,110.28]
[1747998647159,5.3942,185.39,185.36,5.3948]
[1747998647660,5.43560047,185.39,185.36,5.43184325]
[1747998648057,5.3943,185.38,185.36,0.03704325]
[1747998649359,5.3943,185.38,185.36,5.43194325]
[1747998649551,5.3943,185.38,185.36,0.03704325]
[1747998651055,0.04140047,185.39,185.36,0.03704325]
[1747998651561,5.3943,185.38,185.36,0.03704325]
[1747998652761,5.3946,185.37,185.36,0.03704325]
[1747998657764,5.3944,185.38,185.36,5.43194325]
[1747998658159,0.04140047,185.39,185.36,0.03704325]
[1747998659067,0.04140047,185.39,185.38,5.3943]
[1747998659866,0.04140047,185.39,185.36,0.03704325]
[1747998660369,0.04140047,185.39,185.36,5.43184325]
[1747998660571,0.04140047,185.39,185.36,0.03704325]
[1747998660867,0.04140047,185.39,185.37,5.3945]
[1747998661469,0.04140047,185.39,185.37,5.3946]
[1747998662571,0.04140047,185.39,185.38,5.3943]
[1747998663168,0.04140047,185.39,185.36,0.03704325]
[1747998663773,0.04140047,185.39,185.37,5.3944]
[1747998664173,0.04140047,185.39,185.36,0.03704325]
[1747998664372,5.3962,185.32,185.29,5.3967]
[1747998664560,109.72,185.35,185.24,3.9175]
[1747998664763,109.72,185.35,185.26,5.90824258]
[1747998664971,5.3969,185.29,185.26,5.90824258]
[1747998665368,5.3969,185.29,185.27,0.03415444]
[1747998665568,5.43652899,185.3,185.27,0.03415444]
[1747998666175,0.03982899,185.3,185.27,0.03415444]
[1747998666674,0.03982899,185.3,185.28,9.84428851]
[1747998667574,0.03982899,185.3,185.28,4.44718851]
[1747998667872,0.03982899,185.3,185.27,0.03415444]
[1747998669877,5.3972,185.28,185.27,0.03415444]
[1747998677483,5.3986,185.24,185.16,115.03938805]
[1747998677676,5.3986,185.24,185.16,116.88198805]
[1747998678281,5.3982,185.25,185.16,116.88198805]
[1747998678579,0.03887164,185.22,185.2,5.3994]
[1747998678782,0.04122006,185.23,185.2,5.3994]
[1747998678976,0.03984331,185.23,185.2,5.44077611]
[1747998679178,5.43854331,185.23,185.2,0.04137611]
[1747998680384,5.43854331,185.23,185.2,5.44087611]
[1747998681081,5.43854331,185.23,185.2,0.04137611]
[1747998681082,5.3991,185.22,185.2,0.04137611]
[1747998681375,0.03984331,185.23,185.2,0.04137611]
[1747998681790,5.3993,185.21,185.2,0.04137611]
[1747998683787,5.3991,185.22,185.2,0.04137611]
[1747998684285,0.03984331,185.23,185.2,0.04137611]
[1747998684888,5.43854331,185.23,185.21,5.3992]
[1747998685586,5.43854331,185.23,185.2,5.44087611]
[1747998685988,5.43854331,185.23,185.2,0.04137611]
[1747998686288,0.03984331,185.23,185.21,5.3993]
[1747998686587,0.03984331,185.23,185.2,0.04137611]
[1747998686785,0.03984331,185.23,185.2,5.44087611]
[1747998686986,0.03984331,185.23,185.2,0.04137611]
[1747998687379,5.399,185.22,185.2,0.04137611]
[1747998687784,0.03984331,185.23,185.2,0.04137611]
[1747998688188,5.3993,185.21,185.2,0.04137611]
[1747998696993,5.3991,185.22,185.2,0.04137611]
[1747998697292,0.03984331,185.23,185.2,0.04137611]
[1747998697490,5.399,185.22,185.2,0.04137611]
[1747998697891,0.03984331,185.23,185.2,0.04137611]
[1747998698191,5.3993,185.21,185.2,0.04137611]
[1747998707596,109.79984331,185.23,185.15,3.40127438]
[1747998707597,113.20111769,185.23,185.15,3.40127438]
[1747998707802,113.16127438,185.23,185.12,15.13037506]
[1747998708100,113.16127438,185.23,185.14,3.40127438]
[1747998708598,0.03791499,185.2,185.14,8.80257438]
[1747998708901,0.03791499,185.2,185.14,3.40127438]
[1747998709405,0.03791499,185.2,185.14,8.80237438]
[1747998710101,0.03791499,185.2,185.16,3.40127438]
[1747998710493,5.4004,185.18,185.16,3.40127438]
[1747998710788,0.03791499,185.2,185.16,3.40127438]
[1747998710993,0.03791499,185.2,185.13,5.4013]
[1747998711293,0.03791499,185.2,185.15,3.40127438]
[1747998711902,5.4003,185.18,185.15,8.80207438]
[1747998712604,5.4004,185.17,185.15,8.80207438]
[1747998712797,5.4004,185.17,185.15,3.40127438]
[1747998713102,0.03791499,185.2,185.14,8.80257438]
[1747998713303,5.4005,185.17,185.14,8.80257438]
[1747998713802,109.78,185.18,185.15,5.401]
[1747998714103,109.78,185.18,185.14,3.40127438]
[1747998714304,109.78,185.18,185.14,8.80237438]
[1747998714505,5.4006,185.17,185.14,8.80237438]
[1747998715407,109.78,185.18,185.14,8.80237438]
[1747998715902,109.78,185.18,185.14,5.4011]
[1747998716102,109.78,185.18,185.14,3.40127438]
[1747998716507,5.4007,185.17,185.14,3.40127438]
[1747998717003,109.78,185.18,185.14,3.40127438]
[1747998717305,5.4008,185.16,185.14,3.40127438]
[1747998717908,109.78,185.18,185.12,14.08446093]
[1747998718107,0.03995126,185.17,185.12,10.68318655]
[1747998718299,0.03995126,185.17,185.12,14.08446093]
[1747998718705,0.03995126,185.17,185.13,3.40127438]
[1747998719708,5.4008,185.16,185.13,8.80277438]
[1747998720415,0.03995126,185.17,185.15,3.40127438]
[1747998720605,109.8,185.21,185.15,3.40127438]
[1747998720902,109.8,185.21,185.18,3.40127438]
[1747998721111,115.1993,185.21,185.19,5.3998]
[1747998721707,109.8,185.21,185.19,5.3998]
[1747998722201,0.03415734,185.22,185.18,3.44179632]
[1747998722906,0.03415734,185.22,185.2,5.3994]
[1747998723109,0.03415734,185.22,185.2,3.40127438]
[1747998723607,0.03415734,185.22,185.18,0.04052194]
[1747998723809,0.03415734,185.22,185.18,3.44179632]
[1747998724013,5.3993,185.21,185.18,8.84179632]
[1747998724311,0.03415734,185.22,185.18,3.44179632]
[1747998724912,0.03415734,185.22,185.18,0.04052194]
[1747998725209,5.3993,185.21,185.18,0.04052194]
[1747998725597,0.03415734,185.22,185.18,0.04052194]
[1747998726003,0.03415734,185.22,185.19,3.40127438]
[1747998726305,0.03415734,185.22,185.2,5.3993]
[1747998727009,0.03415734,185.22,185.21,5.3993]
[1747998727610,0.03415734,185.22,185.2,5.3995]
[1747998728510,5.43325734,185.22,185.19,5.3998]
[1747998731612,0.03415734,185.22,185.21,5.3993]
[1747998731799,4.95974427,185.27,185.2,3.40127438]
[1747998732003,4.95974427,185.27,185.23,3.40127438]
[1747998732204,10.35744427,185.27,185.24,5.3982]
[1747998732411,4.95974427,185.27,185.24,5.3982]
[1747998732904,5.00095731,185.27,185.25,5.3981]
[1747998735004,5.00095731,185.27,185.26,5.3978]
[1747998735709,0.04121304,185.27,185.26,5.3978]
[1747998736111,114.67974427,185.31,185.25,1.8469]
[1747998736308,4.95974427,185.31,185.25,7.1577467]
[1747998736509,1.96814427,185.31,185.3,5.3967]
[1747998736714,6.58263719,185.33,185.28,115.0308467]
[1747998737105,0.03465892,185.32,185.29,0.03570129]
[1747998737407,6.58263719,185.33,185.29,0.03570129]
[1747998737618,6.58263719,185.33,185.32,5.3961]
[1747998737811,6.58263719,185.33,185.29,0.03570129]
[1747998738320,6.62278455,185.33,185.29,0.03570129]
[1747998738608,6.62278455,185.33,185.29,5.43240129]
[1747998739113,12.01868455,185.33,185.29,0.03570129]
[1747998739305,6.62278455,185.33,185.29,5.43260129]
[1747998739707,0.04014736,185.33,185.29,5.43260129]
[1747998740617,5.3961,185.32,185.29,5.43260129]
[1747998740810,0.04014736,185.33,185.29,0.03570129]
[1747998741318,0.04014736,185.33,185.32,5.3961]
[1747998742117,0.04014736,185.33,185.31,5.3963]
[1747998742519,0.04014736,185.33,185.29,0.03570129]
[1747998743018,0.04014736,185.33,185.32,5.3961]
[1747998753019,4.736e-05,185.33,185.32,5.3961]
[1747998753216,1.8319,185.45,185.32,114.9508467]
[1747998753421,109.64,185.45,185.36,5.3108467]
[1747998753631,5.3918,185.47,185.37,109.64]
[1747998753924,5.3918,185.47,185.37,111.5796]
[1747998754128,0.03787556,185.44,185.4,0.03779425]
[1747998754321,0.03787556,185.44,185.42,5.393]
[1747998754530,0.03787556,185.44,185.4,0.03779425]
[1747998755020,0.03787556,185.44,185.43,5.3929]
[1747998756128,0.03787556,185.44,185.4,0.03779425]
[1747998756129,0.03787556,185.44,185.42,5.3931]
[1747998756830,0.03787556,185.44,185.41,5.3934]
[1747998757035,0.03787556,185.44,185.4,0.03779425]
[1747998757231,0.03787556,185.44,185.41,5.3108467]
[1747998757432,0.03787556,185.44,185.43,5.3929]
[1747998758229,0.03787556,185.44,185.4,0.03779425]
[1747998758734,5.3931,185.43,185.4,0.03779425]
[1747998758935,0.03787556,185.44,185.4,5.43129425]
[1747998759234,0.03787556,185.44,185.4,0.03779425]
[1747998759430,0.03787556,185.44,185.41,5.3932]
[1747998760638,0.03787556,185.44,185.42,5.3931]
[1747998761940,0.03787556,185.44,185.43,5.3929]
[1747998762539,0.03787556,185.44,185.4,0.03779425]
[1747998763241,0.03787556,185.44,185.42,5.3929]
[1747998763427,0.03787556,185.44,185.4,0.03779425]
[1747998764839,0.03787556,185.44,185.43,5.3929]
[1747998765436,0.03787556,185.44,185.42,5.3931]
[1747998766042,0.03787556,185.44,185.43,5.3929]
[1747998767337,109.64,185.49,185.47,5.3915]
[1747998767542,109.64,185.49,185.42,114.8708467]
[1747998767737,5.3906,185.51,185.42,114.8708467]
[1747998767933,5.3909,185.5,185.42,109.56]
[1747998768134,109.56,185.53,185.42,109.56]
[1747998768340,0.03596242,185.49,185.46,0.0407469]
[1747998768539,5.3917,185.47,185.46,0.0407469]
[1747998770548,5.4,185.47,185.36,109.56]
[1747998770749,1.8621,185.46,185.36,109.56]
[1747998770945,5.3931,185.43,185.36,109.56]
[1747998771240,1.8621,185.46,185.36,109.56]
[1747998771444,0.03818118,185.43,185.39,0.03547618]
[1747998771643,5.43108118,185.43,185.39,0.03547618]
[1747998771842,0.03818118,185.43,185.39,0.03547618]
[1747998772045,0.03818118,185.43,185.41,5.3932]
[1747998772245,0.03818118,185.43,185.39,0.03547618]
[1747998773249,0.03818118,185.43,185.42,5.3932]
[1747998773745,0.03818118,185.43,185.41,5.3933]
[1747998774650,0.03818118,185.43,185.39,0.03547618]
[1747998774651,0.03818118,185.43,185.4,5.3937]
[1747998775148,5.43128118,185.43,185.4,5.3937]
[1747998775450,5.43128118,185.43,185.39,0.03547618]
[1747998775953,0.03818118,185.43,185.39,0.03547618]
[1747998776255,0.03818118,185.43,185.41,5.3933]
[1747998776648,0.03818118,185.43,185.39,0.03547618]
[1747998776849,0.03818118,185.43,185.42,5.3932]
[1747998777852,0.03818118,185.43,185.39,0.03547618]
[1747998778459,0.03818118,185.43,185.42,5.3932]
[1747998780059,0.03818118,185.43,185.4,5.3937]
[1747998780557,0.03818118,185.43,185.39,5.42937618]
[1747998780857,109.59818118,185.43,185.39,0.03547618]
[1747998781061,5.3938,185.4,185.39,0.03547618]
[1747998784962,7.2777,185.41,185.39,0.03547618]
[1747998785167,109.59818118,185.43,185.39,0.03547618]
[1747998785566,5.3932,185.42,185.39,0.03547618]
[1747998786260,114.99108118,185.43,185.4,5.3936]
[1747998786455,109.59818118,185.43,185.39,0.03547618]
[1747998786760,5.3932,185.42,185.39,5.42937618]
[1747998787665,114.99128118,185.43,185.4,5.3937]
[1747998787855,109.59818118,185.43,185.39,0.03547618]
[1747998788564,5.3932,185.42,185.39,0.03547618]
[1747998789256,5.3932,185.42,185.39,5.42947618]
[1747998789666,5.3932,185.42,185.39,0.03547618]
[1747998789870,114.99118118,185.43,185.4,5.3937]
[1747998790063,109.59818118,185.43,185.39,0.03547618]
[1747998790270,109.59818118,185.43,185.4,5.3937]
[1747998790455,109.59818118,185.43,185.39,0.03547618]
[1747998790966,5.3935,185.42,185.39,5.42927618]
[1747998791769,114.99118118,185.43,185.4,5.3937]
[1747998795475,5.3932,185.42,185.4,5.3937]
[1747998795674,109.59818118,185.43,185.39,0.03547618]
[1747998796466,114.99128118,185.43,185.4,5.3937]
[1747998796876,114.99128118,185.43,185.39,0.03547618]
[1747998797175,114.99128118,185.43,185.4,5.3937]
[1747998797374,5.3933,185.42,185.39,0.03547618]
[1747998797769,5.3933,185.42,185.4,5.3938]
[1747998798176,109.59818118,185.43,185.39,0.03547618]
[1747998798567,109.59818118,185.43,185.33,4.44718851]
[1747998798876,109.59818118,185.43,185.34,5.3953]
[1747998799372,5.3949,185.37,185.33,9.84288851]
[1747998799565,109.56,185.43,185.33,9.87846964]
[1747998799768,0.04097825,185.37,185.33,9.87846964]
[1747998800168,0.04097825,185.37,185.33,5.43128113]
[1747998800367,5.3953,185.35,185.33,0.03558113]
[1747998800970,5.3955,185.34,185.33,0.03558113]
[1747998816100,5.3951,185.36,185.33,0.03558113]
[1747998816299,5.3951,185.36,185.33,5.43128113]
[1747998816802,0.04097825,185.37,185.33,0.03558113]
[1747998819500,0.04097825,185.37,185.36,5.3949]
[1747998825906,0.04097825,185.37,185.33,102.57558113]
[1747998825907,0.04097825,185.37,185.33,0.03558113]
[1747998826112,109.56097825,185.37,185.33,0.03558113]
[1747998826312,5.3955,185.34,185.33,0.03558113]
[1747998828414,109.56097825,185.37,185.28,5.397]
[1747998828615,109.52,185.37,185.28,5.397]
[1747998829408,0.04052813,185.34,185.31,0.03622963]
[1747998830616,5.3961,185.32,185.31,0.03622963]
[1747998847828,0.04052813,185.34,185.31,0.03622963]
[1747998848431,5.3961,185.32,185.31,0.03622963]
[1747998848829,0.04052813,185.34,185.31,0.03622963]
[1747998849022,5.3961,185.33,185.31,0.03622963]
[1747998849223,0.04052813,185.34,185.31,0.03622963]
[1747998849717,5.3961,185.32,185.31,0.03622963]
[1747998858928,5.3961,185.32,185.25,4.44718851]
[1747998858929,5.3978,185.26,185.25,4.44718851]
[1747998861849,5.3978,185.26,185.24,0.04123484]
[1747998864651,109.53676646,185.27,185.24,0.04123484]
[1747998865749,5.398,185.26,185.24,0.04123484]
[1747998866947,109.53676646,185.27,185.24,0.04123484]
[1747998867350,109.53676646,185.27,185.25,5.3979]
[1747998867643,109.53676646,185.27,185.24,0.04123484]
[1747998867949,109.53676646,185.27,185.25,5.3979]
[1747998868151,109.53676646,185.27,185.24,0.04123484]
[1747998868650,109.53676646,185.27,185.26,5.3978]
[1747998868852,0.03676646,185.27,185.26,5.3978]
[1747998870152,4.99423489,185.34,185.31,5.3962]
[1747998870451,4.99423489,185.34,185.24,5.3108467]
[1747998871050,4.99423489,185.34,185.23,109.52]
[1747998871051,0.03410773,185.31,185.27,5.34558479]
[1747998871353,4.99423489,185.34,185.33,5.3958]
[1747998873054,0.03786959,185.35,185.34,5.3955]
[1747998874749,6.959e-05,185.35,185.34,5.3955]
[1747998875343,6.959e-05,185.35,185.34,7.3221]
[1747998878052,471.8523,185.45,185.42,5.3932]
[1747998878355,5.3923,185.45,185.42,5.3932]
[1747998878555,5.3927,185.44,185.4,5.3936]
[1747998879055,0.03638025,185.44,185.41,5.3932]